bitfinex/quotes_BTCUSD_20260110
["timestamp","ask_amount","ask_price","bid_price","bid_amount"]
[1768042143898,0.06901121,90821.0,90815.0,0.01101139]
[1768042144130,0.06901121,90821.0,90813.0,0.01101163]
[1768042145133,0.06901121,90821.0,90815.0,0.01101139]
[1768042147597,0.06901121,90821.0,90813.0,0.01101163]
[1768042148195,0.06901121,90821.0,90814.0,0.01101151]
[1768042148391,0.06901121,90821.0,90809.0,0.01101212]
[1768042148595,0.06901121,90821.0,90813.0,0.01101163]
[1768042148809,0.21853373,90820.0,90813.0,0.01101163]
[1768042149620,0.21853373,90820.0,90814.0,0.01101151]
[1768042150273,0.06901121,90821.0,90814.0,0.01101151]
[1768042150439,0.06896158,90821.0,90814.0,0.01101151]
[1768042150916,0.06896158,90821.0,90813.0,0.01101163]
[1768042152283,0.06896158,90821.0,90814.0,0.01101151]
[1768042154655,0.06896158,90821.0,90813.0,0.01101163]
[1768042155344,0.06896158,90821.0,90815.0,0.01101139]
[1768042155544,0.06896158,90821.0,90817.0,0.01101115]
[1768042155965,0.06896158,90821.0,90816.0,0.01101127]
[1768042156171,0.06896158,90821.0,90817.0,0.01101115]
[1768042156371,0.06896158,90821.0,90816.0,0.01101127]
[1768042156568,0.06896158,90821.0,90818.0,0.01101103]
[1768042156994,0.06896158,90821.0,90817.0,0.01101115]
[1768042157411,0.06896158,90821.0,90818.0,0.01101103]
[1768042157756,0.06896158,90821.0,90817.0,0.01101115]
[1768042158013,0.06896158,90821.0,90818.0,0.01101103]
[1768042162674,0.06896158,90821.0,90816.0,0.01101127]
[1768042163513,0.06896158,90821.0,90817.0,0.01101115]
[1768042168626,0.06896158,90821.0,90816.0,0.01101127]
[1768042168830,0.06896158,90821.0,90815.0,0.01101139]
[1768042168989,0.02199037,90821.0,90815.0,0.01101139]
[1768042169531,0.02199037,90821.0,90814.0,0.01101151]
[1768042170827,0.00073959,90817.0,90814.0,0.06606897]
[1768042170992,0.00064908,90817.0,90814.0,0.01101151]
[1768042171192,0.00064908,90817.0,90815.0,0.05505681]
[1768042171820,0.00064908,90817.0,90814.0,0.06606907]
[1768042173906,0.00064908,90817.0,90814.0,0.01101151]
[1768042174146,0.00064908,90817.0,90814.0,0.06606903]
[1768042174879,0.00064908,90817.0,90814.0,0.01101151]
[1768042175019,0.00064908,90817.0,90814.0,0.06606882]
[1768042175247,0.00055857,90817.0,90814.0,0.06606882]
[1768042176689,0.02199037,90821.0,90816.0,0.01101127]
[1768042177914,0.02199037,90821.0,90816.0,0.01092126]
[1768042178106,0.02199037,90821.0,90816.0,0.01083125]
[1768042179581,0.02199037,90821.0,90817.0,0.01101115]
[1768042179883,0.02199037,90821.0,90816.0,0.01101127]
[1768042180084,0.02199037,90821.0,90814.0,0.01101151]
[1768042180283,0.02199037,90821.0,90813.0,0.01101163]
[1768042180971,0.02199037,90821.0,90813.0,0.06606933]
[1768042181738,0.02199037,90821.0,90814.0,0.01101151]
[1768042181917,0.02199037,90821.0,90813.0,0.01101163]
[1768042182121,0.02199037,90821.0,90807.0,0.01101236]
[1768042182122,0.02204,90825.0,90823.0,0.04794941]
[1768042182316,0.02204,90827.0,90823.0,0.04794941]
[1768042183305,0.02204,90827.0,90823.0,0.05844373]
[1768042183543,0.02204,90827.0,90823.0,0.04743331]
[1768042185574,0.02204,90827.0,90819.0,0.01101091]
[1768042185767,0.000999,90823.0,90818.0,0.04794941]
[1768042186060,0.02204,90827.0,90818.0,0.04794941]
[1768042186766,0.02204,90827.0,90818.0,0.05896044]
[1768042186999,0.02204,90827.0,90819.0,0.01101091]
[1768042187212,0.02204,90827.0,90818.0,0.04794941]
[1768042188964,0.02204,90827.0,90818.0,0.02564528]
[1768042192160,0.000999,90818.0,90810.0,0.02204]
[1768042192298,0.000999,90818.0,90815.0,0.01101139]
[1768042192499,0.04609645,90826.0,90814.0,0.06073413]
[1768042193114,0.04609645,90826.0,90815.0,0.01101139]
[1768042193404,0.02204,90827.0,90815.0,0.01101139]
[1768042194053,0.02204,90827.0,90814.0,0.06073413]
[1768042194257,0.02204,90827.0,90815.0,0.01101139]
[1768042195429,0.02204,90827.0,90816.0,0.01101127]
[1768042195969,0.02204,90827.0,90815.0,0.01101139]
[1768042196172,0.02204,90827.0,90816.0,0.01101127]
[1768042198702,0.02204,90827.0,90817.0,0.01101115]
[1768042198879,0.02204,90827.0,90816.0,0.01101127]
[1768042199992,0.02204,90827.0,90817.0,0.01101115]
[1768042200179,0.02204,90827.0,90818.0,0.01101103]
[1768042201292,0.02204,90827.0,90818.0,0.06073365]
[1768042201489,0.01115981,90833.0,90820.0,0.04972262]
[1768042201490,0.02204,90831.0,90820.0,0.04972262]
[1768042203305,0.02204,90831.0,90824.0,0.04725007]
[1768042205564,0.02204,90831.0,90824.0,0.04716007]
[1768042206152,0.02204,90831.0,90819.0,0.01101091]
[1768042206347,0.02204,90831.0,90820.0,0.01101079]
[1768042206869,0.02204,90831.0,90819.0,0.01101091]
[1768042207069,0.02204,90831.0,90820.0,0.01101079]
[1768042207435,0.02204,90831.0,90819.0,0.01101091]
[1768042207625,0.02204,90831.0,90820.0,0.01101079]
[1768042207825,0.02204,90831.0,90821.0,0.01101066]
[1768042208065,0.02204,90831.0,90820.0,0.01101079]
[1768042209134,0.02204,90831.0,90821.0,0.01101066]
[1768042209338,0.03319981,90833.0,90819.0,0.01101091]
[1768042209560,0.0221906,90833.0,90818.0,0.01101103]
[1768042209841,0.0221906,90833.0,90820.0,0.01101079]
[1768042210015,0.0221906,90833.0,90819.0,0.01101091]
[1768042210373,0.0221906,90833.0,90822.0,0.01101054]
[1768042210636,0.0221906,90833.0,90820.0,0.01101079]
[1768042210799,0.0221906,90833.0,90821.0,0.01101066]
[1768042211494,0.0221906,90833.0,90820.0,0.01101079]
[1768042211913,0.0221906,90833.0,90821.0,0.01101066]
[1768042213050,0.0221906,90833.0,90820.0,0.01101079]
[1768042213542,0.03319981,90833.0,90819.0,0.01101091]
[1768042214541,0.0221906,90833.0,90819.0,0.01101091]
[1768042215250,0.03319981,90833.0,90819.0,0.01101091]
[1768042216513,0.03319981,90833.0,90819.0,0.01096566]
[1768042216695,0.01100933,90832.0,90818.0,0.0582611]
[1768042216897,0.03319981,90833.0,90819.0,0.01101091]
[1768042218482,0.0221906,90833.0,90819.0,0.01101091]
[1768042218682,0.03319981,90833.0,90819.0,0.01101091]
[1768042219219,0.01100933,90832.0,90818.0,0.0582611]
[1768042219548,0.01100945,90831.0,90818.0,0.04725007]
[1768042220298,0.01100957,90830.0,90818.0,0.04725007]
[1768042220504,0.01100933,90832.0,90818.0,0.04725007]
[1768042220711,0.01100945,90831.0,90818.0,0.04725007]
[1768042221204,0.01100957,90830.0,90818.0,0.04725007]
[1768042222290,0.01100945,90831.0,90818.0,0.04725007]
[1768042222540,0.03319981,90833.0,90818.0,0.0582611]
[1768042222725,0.01100945,90831.0,90818.0,0.04725007]
[1768042222910,0.01100933,90832.0,90818.0,0.0582611]
[1768042223135,0.01100933,90832.0,90818.0,0.04725007]
[1768042223317,0.01100933,90832.0,90818.0,0.0582611]
[1768042223520,0.01100945,90831.0,90818.0,0.04725007]
[1768042223747,0.01100945,90831.0,90818.0,0.0582611]
[1768042224701,0.01100933,90832.0,90818.0,0.0582611]
[1768042225111,0.04522279,90831.0,90818.0,0.01101103]
[1768042225350,0.04522279,90829.0,90816.0,0.01101127]
[1768042225533,0.04522279,90829.0,90817.0,0.01101115]
[1768042229251,0.04522279,90829.0,90818.0,0.01101103]
[1768042229650,0.04522279,90829.0,90817.0,0.01101115]
[1768042230181,0.04522279,90829.0,90816.0,0.01101127]
[1768042230404,0.04522279,90829.0,90817.0,0.01101115]
[1768042232794,0.04522279,90829.0,90818.0,0.01101103]
[1768042233807,0.04522279,90829.0,90819.0,0.01101091]
[1768042234183,0.04522279,90829.0,90821.0,0.01101066]
[1768042234416,0.04522279,90829.0,90819.0,0.01101091]
[1768042234955,0.0221906,90833.0,90820.0,0.01101079]
[1768042235439,0.0221906,90833.0,90818.0,0.01101103]
[1768042235440,0.03319981,90833.0,90818.0,0.06606587]
[1768042235823,0.0221906,90833.0,90820.0,0.01101079]
[1768042236002,0.0221906,90833.0,90821.0,0.01101066]
[1768042236402,0.0221906,90833.0,90820.0,0.01101079]
[1768042237186,0.0221906,90833.0,90819.0,0.01101091]
[1768042237387,0.0221906,90833.0,90820.0,0.01101079]
[1768042237637,0.0221906,90833.0,90821.0,0.01101066]
[1768042238194,0.0221906,90833.0,90820.0,0.01101079]
[1768042238398,0.0221906,90833.0,90819.0,0.01101091]
[1768042238595,0.0221906,90833.0,90820.0,0.01101079]
[1768042239665,0.06836973,90833.0,90820.0,0.01101079]
[1768042239999,0.06836973,90833.0,90821.0,0.01101066]
[1768042240253,0.06836973,90833.0,90820.0,0.01101079]
[1768042240417,0.06836973,90833.0,90821.0,0.01101066]
[1768042240754,0.06836973,90833.0,90822.0,0.01101054]
[1768042240942,0.06836973,90833.0,90820.0,0.01101079]
[1768042241649,0.06836973,90833.0,90821.0,0.01101066]
[1768042242073,0.06836973,90833.0,90820.0,0.01101079]
[1768042242465,0.06836973,90833.0,90821.0,0.01101066]
[1768042242650,0.06836973,90833.0,90822.0,0.01101054]
[1768042242848,0.06836973,90833.0,90821.0,0.01101066]
[1768042243075,0.06836973,90833.0,90822.0,0.01101054]
[1768042243289,0.06836973,90833.0,90821.0,0.01101066]
[1768042243495,0.06836973,90833.0,90822.0,0.01101054]
[1768042243910,0.06836973,90833.0,90821.0,0.01101066]
[1768042244526,0.06836973,90833.0,90820.0,0.01101079]
[1768042244809,0.06836973,90833.0,90821.0,0.01101066]
[1768042246180,0.06836973,90833.0,90822.0,0.01101054]
[1768042246740,0.06836973,90833.0,90821.0,0.01101066]
[1768042246970,0.06836973,90833.0,90822.0,0.01101054]
[1768042247154,0.06836973,90833.0,90821.0,0.01101066]
[1768042247360,0.06836973,90833.0,90822.0,0.01101054]
[1768042247565,0.06836973,90833.0,90822.0,0.01092054]
[1768042248166,0.06836973,90833.0,90823.0,0.01101042]
[1768042248470,0.06836973,90833.0,90822.0,0.01101054]
[1768042248677,0.06836973,90833.0,90820.0,0.01101079]
[1768042248830,0.06836973,90833.0,90821.0,0.01101066]
[1768042249021,0.06836973,90833.0,90822.0,0.01101054]
[1768042249492,0.06836973,90833.0,90820.0,0.01101079]
[1768042249674,0.06836973,90833.0,90822.0,0.01101054]
[1768042250056,0.06836973,90833.0,90821.0,0.01101066]
[1768042250262,0.06836973,90833.0,90822.0,0.01101054]
[1768042250645,0.06836973,90833.0,90823.0,0.01101042]
[1768042251278,8.131e-05,90839.0,90828.0,0.05689509]
[1768042251474,8.131e-05,90839.0,90833.0,4.137e-05]
[1768042251475,0.04603348,90839.0,90833.0,4.137e-05]
[1768042251660,0.04595217,90837.0,90822.0,0.02204]
[1768042251859,4.1e-05,90833.0,90824.0,0.00440528]
[1768042252086,0.01100897,90835.0,90824.0,0.00440528]
[1768042252304,8.131e-05,90839.0,90823.0,0.05689569]
[1768042252651,0.0110086,90838.0,90823.0,0.05689569]
[1768042252973,0.01108979,90839.0,90825.0,0.01101018]
[1768042253419,0.01108979,90839.0,90823.0,0.05689569]
[1768042253420,0.0110086,90838.0,90823.0,0.05689569]
[1768042253596,8.131e-05,90839.0,90824.0,0.0110103]
[1768042253967,0.0110086,90838.0,90824.0,0.0110103]
[1768042254286,0.0110086,90838.0,90823.0,0.05689569]
[1768042254661,0.01100872,90837.0,90823.0,0.05689569]
[1768042255005,0.01100885,90836.0,90823.0,0.04588527]
[1768042255201,0.01100897,90835.0,90823.0,0.04588527]
[1768042255384,0.01100909,90834.0,90823.0,0.04588527]
[1768042255584,0.01100921,90833.0,90823.0,0.04588527]
[1768042257642,0.01100945,90831.0,90823.0,0.04588527]
[1768042258118,0.000999,90823.0,90822.0,0.02204]
[1768042258322,0.01100945,90831.0,90822.0,0.02204]
[1768042258533,0.01100957,90830.0,90822.0,0.02204]
[1768042258690,0.01100945,90831.0,90822.0,0.02204]
[1768042259090,0.22949472,90832.0,90822.0,0.02204]
[1768042259295,0.01100945,90831.0,90822.0,0.02204]
[1768042260079,0.01100933,90832.0,90822.0,0.02204]
[1768042261405,0.01100945,90831.0,90822.0,0.02204]
[1768042261630,0.01100933,90832.0,90822.0,0.02204]
[1768042262345,0.01100957,90830.0,90822.0,0.02204]
[1768042262550,0.01100945,90831.0,90822.0,0.02204]
[1768042263025,0.01100933,90832.0,90822.0,0.02204]
[1768042263350,0.01100945,90831.0,90822.0,0.02204]
[1768042263548,0.01100957,90830.0,90822.0,0.02204]
[1768042264096,0.01100957,90830.0,90817.0,0.04536927]
[1768042264097,0.01100969,90829.0,90817.0,0.04536927]
[1768042264302,0.000908,90822.0,90810.0,0.0111626]
[1768042264571,0.04986603,90819.0,90810.0,0.0001506]
[1768042264756,0.04986603,90814.0,90810.0,0.0001506]
[1768042264959,0.06087754,90814.0,90810.0,0.0001506]
[1768042265161,0.00015,90810.0,90801.0,0.0001506]
[1768042265372,0.05001603,90810.0,90801.0,6e-07]
[1768042265548,0.06102803,90810.0,90801.0,6e-07]
[1768042265749,0.04986603,90807.0,90801.0,6e-07]
[1768042269087,0.22949727,90811.0,90801.0,6e-07]
[1768042269290,0.01101188,90811.0,90801.0,6e-07]
[1768042269665,0.06087791,90811.0,90801.0,6e-07]
[1768042270140,0.04986603,90809.0,90801.0,6e-07]
[1768042271144,0.06087815,90809.0,90801.0,6e-07]
[1768042271507,0.06087815,90809.0,90801.0,6.638e-05]
[1768042272267,0.04986603,90809.0,90801.0,6.638e-05]
[1768042272484,0.06087815,90809.0,90801.0,6.638e-05]
[1768042272824,0.04986603,90809.0,90801.0,6.638e-05]
[1768042276486,0.04986603,90806.0,90801.0,6.638e-05]
[1768042277774,0.04986603,90804.0,90801.0,6.638e-05]
[1768042278876,0.06087876,90804.0,90801.0,6.638e-05]
[1768042279098,0.04986603,90802.0,90801.0,6.638e-05]
[1768042279328,0.04986603,90802.0,90798.0,0.00051578]
[1768042283963,0.033052,90810.0,90798.0,0.00051578]
[1768042284145,0.04986603,90809.0,90798.0,0.00051578]
[1768042285019,0.04986603,90809.0,90800.0,0.01101321]
[1768042285352,0.02204,90808.0,90800.0,0.01101321]
[1768042285716,0.04986603,90809.0,90799.0,0.01101333]
[1768042286032,0.02204,90808.0,90799.0,0.01101333]
[1768042286251,0.02204,90808.0,90798.0,0.01152923]
[1768042286653,0.02204,90808.0,90798.0,0.00051578]
[1768042286851,0.02204,90807.0,90798.0,0.00051578]
[1768042288071,0.04986603,90809.0,90798.0,0.00051578]
[1768042288273,0.02204,90806.0,90798.0,0.00051578]
[1768042289680,0.02204,90806.0,90798.0,0.01152923]
[1768042289883,0.02204,90806.0,90798.0,0.00051578]
[1768042290107,0.02204,90806.0,90798.0,0.01152923]
[1768042292425,0.02204,90806.0,90799.0,0.01101333]
[1768042292580,0.02204,90806.0,90798.0,0.01152923]
[1768042294714,0.02204,90806.0,90798.0,0.00051578]
[1768042298633,0.04986603,90809.0,90798.0,0.00051578]
[1768042298886,0.02204,90806.0,90798.0,0.00051578]
[1768042300543,0.02204,90805.0,90798.0,0.00051578]
[1768042303938,0.02204,90805.0,90798.0,0.0004475]
[1768042305346,0.06087815,90809.0,90798.0,0.0004475]
[1768042305530,0.02204,90805.0,90798.0,0.0004475]
[1768042306046,0.02204,90806.0,90798.0,0.0004475]
[1768042314200,0.03305248,90806.0,90798.0,0.0004475]
[1768042314634,0.02204,90806.0,90798.0,0.0004475]
[1768042331459,0.02204,90806.0,90798.0,0.00037923]
[1768042332512,0.02204,90806.0,90798.0,0.00033399]
[1768042335422,0.02204,90806.0,90798.0,0.00028875]
[1768042338844,0.02204,90806.0,90798.0,0.04767158]
[1768042339249,0.02204,90806.0,90798.0,0.04760331]
[1768042340116,0.02204,90806.0,90799.0,0.05839616]
[1768042340694,0.02204,90806.0,90799.0,0.04738283]
[1768042347192,0.09319084,90813.0,90799.0,0.05839616]
[1768042347358,0.01101176,90812.0,90799.0,0.05839616]
[1768042347776,0.01101188,90811.0,90799.0,0.04738283]
[1768042349697,0.01101176,90812.0,90799.0,0.04738283]
[1768042350117,0.01101188,90811.0,90799.0,0.04738283]
[1768042350291,0.01101188,90811.0,90799.0,0.04733759]
[1768042350495,0.01101176,90812.0,90799.0,0.04729235]
[1768042350695,0.01101176,90812.0,90799.0,0.04724711]
[1768042351319,0.01101188,90811.0,90799.0,0.04724711]
[1768042352426,0.09319084,90813.0,90799.0,0.04724711]
[1768042352636,0.01101176,90812.0,90799.0,0.05826044]
[1768042352808,0.01101176,90812.0,90799.0,0.04724711]
[1768042353958,0.08217921,90813.0,90800.0,0.01101321]
[1768042354161,0.08217921,90813.0,90799.0,0.05826044]
[1768042354326,0.08217921,90813.0,90800.0,0.01101321]
[1768042354820,0.08217921,90813.0,90799.0,0.05826044]
[1768042355237,0.08217921,90813.0,90799.0,0.04724711]
[1768042356188,0.01101176,90812.0,90799.0,0.04724711]
[1768042357341,0.01101188,90811.0,90799.0,0.04724711]
[1768042357518,0.01101176,90812.0,90799.0,0.04724711]
[1768042358049,0.09319084,90813.0,90799.0,0.05826044]
[1768042360522,0.01101176,90812.0,90799.0,0.04724711]
[1768042360739,0.09319084,90813.0,90799.0,0.05826044]
[1768042361281,0.09319084,90813.0,90799.0,0.04724711]
[1768042362084,0.01101188,90811.0,90799.0,0.04724711]
[1768042362286,0.14184561,90813.0,90800.0,0.01101321]
[1768042362287,0.13083398,90813.0,90800.0,0.01101321]
[1768042362514,0.04865477,90812.0,90798.0,0.01123393]
[1768042363507,0.04865477,90812.0,90799.0,0.01101333]
[1768042363708,0.05966653,90812.0,90798.0,0.01123393]
[1768042364126,0.05966653,90812.0,90798.0,0.00022048]
[1768042364309,0.04865477,90812.0,90798.0,0.01123393]
[1768042364521,0.05966653,90812.0,90798.0,0.01123393]
[1768042366628,0.04865477,90823.0,90809.0,0.01101212]
[1768042366850,0.04875534,90823.0,90810.0,0.04944037]
[1768042367058,0.02204,90822.0,90810.0,0.011012]
[1768042367259,0.07069477,90822.0,90811.0,0.01101188]
[1768042367439,0.07069477,90822.0,90810.0,0.011012]
[1768042367671,0.07069477,90822.0,90809.0,0.01101212]
[1768042368433,0.04865477,90821.0,90806.0,0.01101248]
[1768042368597,0.04865477,90821.0,90807.0,0.05506165]
[1768042369112,0.04865477,90821.0,90810.0,0.011012]
[1768042369648,0.00010057,90823.0,90812.0,0.06045213]
[1768042369818,0.00010057,90823.0,90814.0,0.04944037]
[1768042370023,0.00010057,90823.0,90816.0,0.04944037]
[1768042374005,0.00010057,90823.0,90816.0,0.04935039]
[1768042379981,0.00010057,90823.0,90809.0,0.04838478]
[1768042380185,0.00010057,90823.0,90811.0,0.04838478]
[1768042380383,0.01111099,90823.0,90811.0,0.04838478]
[1768042380577,0.00010057,90823.0,90811.0,0.04838478]
[1768042380802,0.01111099,90823.0,90811.0,0.04838478]
[1768042381165,0.00010057,90823.0,90811.0,0.04838478]
[1768042384947,0.01111099,90823.0,90811.0,0.04838478]
[1768042387653,0.00010057,90823.0,90811.0,0.04838478]
[1768042392065,0.01101054,90822.0,90811.0,0.04838478]
[1768042392450,0.01111099,90823.0,90811.0,0.04838478]
[1768042393971,0.00010057,90823.0,90811.0,0.04838478]
[1768042394376,0.01111099,90823.0,90811.0,0.04838478]
[1768042394501,0.00010057,90823.0,90811.0,0.04838478]
[1768042395317,0.00010057,90823.0,90811.0,0.05939666]
[1768042395520,0.00010057,90823.0,90811.0,0.04838478]
[1768042396346,0.00010057,90823.0,90811.0,0.05939666]
[1768042396594,0.00010057,90823.0,90811.0,0.04838478]
[1768042396765,0.00010057,90823.0,90811.0,0.05939666]
[1768042397995,0.00010057,90823.0,90811.0,0.04838478]
[1768042398197,0.00010057,90823.0,90811.0,0.05939666]
[1768042398997,0.00010057,90823.0,90811.0,0.04838478]
[1768042400868,0.00010057,90823.0,90811.0,0.05939666]
[1768042402918,0.01111099,90823.0,90811.0,0.04838478]
[1768042403123,0.00010057,90823.0,90811.0,0.04838478]
[1768042404114,0.01111099,90823.0,90811.0,0.04838478]
[1768042404300,0.01101054,90822.0,90811.0,0.04838478]
[1768042404903,0.01101066,90821.0,90808.0,0.02204]
[1768042405110,0.05505472,90819.0,90808.0,0.02204]
[1768042405401,0.01101103,90818.0,90808.0,0.02204]
[1768042406029,0.01101115,90817.0,90808.0,0.02204]
[1768042407356,0.01101103,90818.0,90808.0,0.02204]
[1768042407357,0.01101091,90819.0,90808.0,0.02204]
[1768042407638,0.01101103,90818.0,90808.0,0.02204]
[1768042408268,0.01101091,90819.0,90808.0,0.02204]
[1768042408689,0.01101103,90818.0,90808.0,0.02204]
[1768042408815,0.01101079,90820.0,90808.0,0.02204]
[1768042409233,0.01101091,90819.0,90808.0,0.02204]
[1768042409762,0.01101079,90820.0,90808.0,0.02204]
[1768042410350,0.01101103,90818.0,90808.0,0.02204]
[1768042411047,0.01101115,90817.0,90808.0,0.02204]
[1768042411814,0.01101103,90818.0,90808.0,0.02204]
[1768042414991,0.01101115,90817.0,90808.0,0.02204]
[1768042417196,0.01101103,90818.0,90808.0,0.02204]
[1768042418715,0.01101115,90817.0,90808.0,0.02204]
[1768042419159,0.01101103,90818.0,90808.0,0.02204]
[1768042419357,0.01101115,90817.0,90808.0,0.02204]
[1768042421679,0.01101103,90818.0,90808.0,0.02204]
[1768042422568,0.01101115,90817.0,90808.0,0.02204]
[1768042423013,0.01101103,90818.0,90808.0,0.02204]
[1768042423222,0.0660648,90820.0,90808.0,0.02204]
[1768042423223,0.01101091,90819.0,90808.0,0.02204]
[1768042423435,0.01101103,90818.0,90808.0,0.02204]
[1768042424337,0.06606675,90818.0,90808.0,0.02204]
[1768042424541,0.01101127,90816.0,90808.0,0.02204]
[1768042424716,0.01101115,90817.0,90808.0,0.02204]
[1768042425177,0.01101139,90815.0,90800.0,0.04521926]
[1768042425375,0.01201124,90808.0,90801.0,0.02204]
[1768042425731,0.01101224,90808.0,90801.0,0.02204]
[1768042427034,0.01101273,90804.0,90792.0,0.0001506]
[1768042427242,0.05993402,90805.0,90792.0,0.0001506]
[1768042428066,0.04892142,90805.0,90792.0,0.01116478]
[1768042428271,0.04892142,90805.0,90793.0,0.01101406]
[1768042429124,0.04892142,90805.0,90794.0,0.01101394]
[1768042429334,0.04892142,90805.0,90793.0,0.01101406]
[1768042429740,0.0486193,90805.0,90793.0,0.01101406]
[1768042429935,0.0486193,90805.0,90794.0,0.01101394]
[1768042430740,0.0486193,90805.0,90793.0,0.01101406]
[1768042431067,0.0486193,90805.0,90794.0,0.01101394]
[1768042431265,0.0486193,90805.0,90793.0,0.01101406]
[1768042432198,0.0486193,90805.0,90794.0,0.01101394]
[1768042432398,0.0486193,90805.0,90795.0,0.01101382]
[1768042432575,0.0486193,90805.0,90796.0,0.0110137]
[1768042433369,0.0486193,90805.0,90795.0,0.01101382]
[1768042434186,0.0486193,90805.0,90794.0,0.01101394]
[1768042434393,0.0486193,90805.0,90796.0,0.0110137]
[1768042434769,0.0486193,90805.0,90795.0,0.01101382]
[1768042436919,0.0486193,90805.0,90796.0,0.0110137]
[1768042437715,0.0486193,90805.0,90797.0,0.01101357]
[1768042438730,0.0486193,90805.0,90798.0,0.01101345]
[1768042438932,0.0486193,90805.0,90797.0,0.01101357]
[1768042439895,0.0486193,90805.0,90798.0,0.01101345]
[1768042440029,0.0486193,90805.0,90797.0,0.01101357]
[1768042441066,0.0486193,90805.0,90791.0,0.05507098]
[1768042441311,0.0486193,90805.0,90790.0,0.29561992]
[1768042441312,0.0486193,90805.0,90795.0,0.01101382]
[1768042441492,0.0486193,90805.0,90793.0,0.05507026]
[1768042441493,0.0486193,90805.0,90794.0,0.01101394]
[1768042441830,0.0486193,90805.0,90795.0,0.01101382]
[1768042442034,0.0486193,90805.0,90793.0,0.01101406]
[1768042442229,0.0486193,90805.0,90794.0,0.01101394]
[1768042442653,0.04950178,90810.0,90798.0,0.01101345]
[1768042442857,0.04950178,90810.0,90798.0,0.06608066]
[1768042443103,0.04950178,90810.0,90799.0,0.01101333]
[1768042443449,0.04950178,90810.0,90798.0,0.01101345]
[1768042443650,0.04950178,90810.0,90799.0,0.01101333]
[1768042444251,0.04950178,90810.0,90800.0,0.01101321]
[1768042445357,0.04950178,90810.0,90798.0,0.01101345]
[1768042445573,0.04950178,90810.0,90800.0,0.01101321]
[1768042446239,0.04950178,90810.0,90809.0,0.05506062]
[1768042446388,0.04599993,90808.0,90807.0,0.01101236]
[1768042446992,0.04599993,90808.0,90806.0,0.01101248]
[1768042447190,0.04599993,90808.0,90806.0,0.0660744]
[1768042447420,0.04599993,90808.0,90807.0,0.01101236]
[1768042447790,0.04599993,90808.0,90806.0,0.01101248]
[1768042447997,0.04599993,90808.0,90807.0,0.01101236]
[1768042448197,0.04599993,90808.0,90806.0,0.01101248]
[1768042448467,0.04599993,90808.0,90806.0,0.06607483]
[1768042448759,0.04599993,90808.0,90805.0,0.0110126]
[1768042449950,0.02204,90809.0,90806.0,0.01101248]
[1768042452222,0.02204,90814.0,90807.0,0.01101236]
[1768042452650,0.00051575,90809.0,90807.0,0.01101236]
[1768042452843,0.00051575,90809.0,90806.0,0.01101248]
[1768042454142,0.00051575,90809.0,90803.0,0.01101285]
[1768042454390,0.00051575,90809.0,90804.0,0.01101273]
[1768042455246,0.00051575,90809.0,90805.0,0.0110126]
[1768042455482,0.00051575,90809.0,90806.0,0.01101248]
[1768042455671,0.00051575,90809.0,90805.0,0.0110126]
[1768042456080,0.00051575,90809.0,90804.0,0.01101273]
[1768042456582,0.00051575,90809.0,90802.0,0.05506444]
[1768042456583,0.00051575,90809.0,90802.0,0.05506442]
[1768042456811,0.00051575,90809.0,90805.0,0.0110126]
[1768042457213,0.00051575,90809.0,90803.0,0.05506415]
[1768042457214,0.00051575,90809.0,90804.0,0.01101273]
[1768042457416,0.00051575,90809.0,90805.0,0.0110126]
[1768042457631,0.00051575,90809.0,90803.0,0.01101285]
[1768042459207,0.00051575,90809.0,90804.0,0.01101273]
[1768042462301,0.00051575,90809.0,90805.0,0.0110126]
[1768042464290,0.00051575,90809.0,90804.0,0.01101273]
[1768042464728,0.00051575,90809.0,90805.0,0.0110126]
[1768042465546,0.00051575,90809.0,90806.0,0.01101248]
[1768042465766,0.00051575,90809.0,90805.0,0.0110126]
[1768042466582,0.00051575,90809.0,90803.0,0.01101285]
[1768042466763,0.00051575,90809.0,90804.0,0.01101273]
[1768042467314,0.00051575,90809.0,90805.0,0.0110126]
[1768042468072,0.00051575,90809.0,90804.0,0.01101273]
[1768042470238,0.00051575,90809.0,90805.0,0.0110126]
[1768042470438,0.00051575,90809.0,90804.0,0.01101273]
[1768042470893,0.00051575,90809.0,90806.0,0.01101248]
[1768042471032,0.00051575,90809.0,90805.0,0.0110126]
[1768042472987,0.00051575,90809.0,90806.0,0.01101248]
[1768042476908,0.00051575,90809.0,90804.0,0.01101273]
[1768042477526,0.00051575,90809.0,90805.0,0.0110126]
[1768042478330,0.00051575,90809.0,90806.0,0.01101248]
[1768042478770,0.00051575,90809.0,90805.0,0.0110126]
[1768042482315,0.00051575,90809.0,90804.0,0.01101273]
[1768042482957,0.00051575,90809.0,90805.0,0.0110126]
[1768042484074,0.00051575,90809.0,90803.0,0.01101285]
[1768042484588,0.00051575,90809.0,90804.0,0.01101273]
[1768042484797,0.00051575,90809.0,90803.0,0.06607698]
[1768042485042,0.00051575,90809.0,90804.0,0.01101273]
[1768042485895,0.00051575,90809.0,90803.0,0.01101285]
[1768042486529,0.00051575,90809.0,90804.0,0.01101273]
[1768042487592,0.00051575,90809.0,90803.0,0.01101285]
[1768042488180,0.00051575,90809.0,90804.0,0.01101273]
[1768042488420,0.00051575,90809.0,90805.0,0.0110126]
[1768042489450,0.00051575,90809.0,90806.0,0.01101248]
[1768042489666,0.00051575,90809.0,90805.0,0.0110126]
[1768042491536,0.00051575,90809.0,90802.0,0.01101297]
[1768042491752,0.00051575,90809.0,90804.0,0.01101273]
[1768042491959,0.00051575,90809.0,90805.0,0.0110126]
[1768042494493,0.00051575,90809.0,90804.0,0.01101273]
[1768042495839,0.00051575,90809.0,90805.0,0.0110126]
[1768042496144,0.00051575,90809.0,90804.0,0.01101273]
[1768042497411,0.00051575,90809.0,90805.0,0.0110126]
[1768042500341,0.00051575,90809.0,90805.0,0.01092263]
[1768042501923,0.00051575,90809.0,90804.0,0.01101273]
[1768042502258,0.00051575,90809.0,90802.0,0.01101297]
[1768042502459,0.00051575,90809.0,90803.0,0.01101285]
[1768042502686,0.00051575,90809.0,90804.0,0.01101273]
[1768042503680,0.00051575,90809.0,90803.0,0.01101285]
[1768042503884,0.00051575,90809.0,90804.0,0.01101273]
[1768042505618,0.00051575,90809.0,90805.0,0.0110126]
[1768042505817,0.00051575,90809.0,90804.0,0.01101273]
[1768042506013,0.04599993,90815.0,90805.0,0.0110126]
[1768042506424,0.04599993,90815.0,90804.0,0.01101273]
[1768042506637,0.04599993,90815.0,90803.0,0.01101285]
[1768042507763,0.04599993,90815.0,90801.0,0.01101309]
[1768042507969,0.05701132,90815.0,90802.0,0.01101297]
[1768042508165,0.04599993,90815.0,90802.0,0.01101297]
[1768042509204,0.04599993,90815.0,90803.0,0.01101285]
[1768042510344,0.04599993,90815.0,90804.0,0.01101273]
[1768042510564,0.04599993,90815.0,90805.0,0.0110126]
[1768042511131,0.04599993,90815.0,90804.0,0.01101273]
[1768042511477,0.00050608,90807.0,90804.0,0.01101273]
[1768042511935,0.00050608,90807.0,90803.0,0.01101285]